bitfinex-derivatives/quotes_ETHF0:USTF0_20241017
["timestamp","ask_amount","ask_price","bid_price","bid_amount"]
[1729131562372,0.38042,2628.8,2628.7,0.98111473]
[1729131562568,5.8778,2628.8,2628.3,0.98111473]
[1729131562775,0.38049,2628.3,2628.2,0.98111473]
[1729131563070,0.38049,2628.3,2628.0,2.01079122]
[1729131563071,0.3805,2628.3,2628.0,1.90973473]
[1729131563382,5.8778,2628.5,2628.0,0.5481]
[1729131563383,3.05052,2628.1,2628.0,0.5481]
[1729131564277,2.67,2628.1,2627.8,0.98111473]
[1729131564479,3.05053,2628.1,2627.8,0.38056]
[1729131564782,6.2491,2628.5,2627.8,0.38056]
[1729131564783,2.67,2627.9,2627.8,0.38056]
[1729131564977,5.14257084,2627.9,2627.7,0.98111473]
[1729131565177,5.14257084,2627.9,2627.6,0.92688]
[1729131565178,1.33697084,2627.9,2627.6,0.92688]
[1729131565474,1.33697084,2627.9,2627.7,0.38057]
[1729131566072,2.67,2628.2,2627.6,4.73521473]
[1729131566480,2.67,2627.9,2627.8,0.38056]
[1729131568480,3.2078,2628.3,2628.0,0.38052]
[1729131568695,3.2078,2628.3,2627.6,3.7541]
[1729131568696,3.756,2628.2,2628.1,0.38052]
[1729131569283,7.5608,2628.2,2627.6,4.73521473]
[1729131569585,7.5608,2628.2,2627.8,0.38056]
[1729131569586,2.67,2627.9,2627.8,0.38056]
[1729131569779,2.67,2627.9,2627.6,3.7541]
[1729131569979,2.67,2627.9,2627.8,0.38056]
[1729131570180,2.67,2627.9,2627.6,0.5463]
[1729131570380,2.67,2627.7,2627.6,0.92689]
[1729131570881,2.67,2627.9,2627.8,0.38056]
[1729131572489,1.71776912,2627.9,2627.8,0.38056]
[1729131574485,1.71776912,2627.9,2627.8,0.38863826]
[1729131575685,11.52336912,2627.9,2627.8,0.00807826]
[1729131575882,11.90391912,2627.9,2627.8,0.00807826]
[1729131576180,11.52336912,2627.9,2627.8,0.00807826]
[1729131576384,5.52336912,2627.9,2627.8,0.00807826]
[1729131576583,11.52336912,2627.9,2627.8,0.00807826]
[1729131576778,5.52336912,2627.9,2627.8,0.00807826]
[1729131576983,5.52336912,2627.9,2627.8,0.38863826]
[1729131577188,5.52336912,2627.9,2627.8,0.00807826]
[1729131577390,5.52336912,2627.9,2627.8,0.38863826]
[1729131577588,2.80376912,2627.9,2627.8,0.38863826]
[1729131578483,1.71776912,2627.9,2627.8,0.38863826]
[1729131578683,2.80376912,2627.9,2627.8,0.38863826]
[1729131579084,2.80376912,2627.9,2627.8,0.00807826]
[1729131579385,2.80376912,2627.9,2627.8,0.38863826]
[1729131580492,1.086,2627.9,2627.8,0.38863826]
[1729131580689,2.67,2627.9,2627.8,0.38863826]
[1729131580895,3.24414343,2629.6,2628.2,0.95124]
[1729131581088,3.24414343,2629.6,2629.1,0.38037]
[1729131581283,3.24414343,2629.6,2629.1,0.38036]
[1729131581587,2.67,2629.3,2629.1,0.38037]
[1729131581892,2.67,2629.3,2629.0,0.38038]
[1729131582093,2.67,2629.3,2628.9,3.2078]
[1729131582296,2.67,2629.3,2629.1,0.38037]
[1729131582496,1.092,2629.2,2629.1,0.38037]
[1729131586396,7.94556,2629.2,2628.6,0.38044]
[1729131586593,1.092,2629.2,2628.6,0.95112]
[1729131586792,3.762,2629.2,2628.9,0.38039]
[1729131586992,2.67,2629.0,2628.6,0.38044]
[1729131587199,2.67,2629.0,2628.5,4.3669]
[1729131587393,2.67,2629.0,2628.7,0.38043]
[1729131587588,3.05042,2628.8,2628.5,4.74735]
[1729131587793,2.67,2628.8,2628.5,4.74735]
[1729131588102,2.67,2628.8,2628.5,3.2078]
[1729131588396,3.2388,2628.8,2628.5,3.2078]
[1729131588598,0.38043,2628.7,2628.5,3.2078]
[1729131588894,1.092,2628.6,2628.5,3.2078]
[1729131589497,1.092,2628.6,2628.4,0.38047]
[1729131589801,1.092,2628.6,2628.5,0.00807826]
[1729131591402,1.092,2628.7,2628.6,0.38044]
[1729131591794,4.896,2628.7,2628.6,0.38044]
[1729131592097,1.092,2628.7,2628.6,0.38044]
[1729131592306,3.2078,2629.0,2628.5,0.00807826]
[1729131592603,1.092,2628.9,2628.8,0.38041]
[1729131592791,3.05038,2629.1,2628.8,0.38041]
[1729131592992,5.8778,2629.3,2628.7,3.2078]
[1729131593204,1.092,2629.2,2629.0,0.38037]
[1729131593401,1.092,2629.2,2628.7,3.2078]
[1729131593701,1.092,2629.2,2629.1,0.38037]
[1729131594002,1.092,2629.2,2629.0,0.38037]
[1729131594215,1.092,2629.2,2629.1,0.38037]
[1729131594500,5.8778,2629.3,2629.1,0.38037]
[1729131594501,6.9698,2629.3,2629.1,0.38037]
[1729131594702,6.9698,2629.3,2628.7,3.2078]
[1729131594703,5.8778,2629.3,2628.7,3.2078]
[1729131594892,5.8778,2629.3,2629.2,0.38036]
[1729131595092,3.2078,2629.3,2629.1,0.38036]
[1729131595499,6.9698,2629.3,2628.7,4.15886]
[1729131595694,6.9698,2629.3,2629.1,0.38037]
[1729131596304,6.9698,2629.3,2628.7,4.15886]
[1729131596500,6.9698,2629.3,2629.1,0.38037]
[1729131597100,4.2998,2629.3,2629.2,0.38036]
[1729131597999,0.20959415,2629.5,2629.0,3.2078]
[1729131598204,1.092,2629.4,2629.3,0.38034]
[1729131598997,12.56829,2629.7,2629.4,0.38032]
[1729131599295,0.5628,2629.8,2629.3,3.2078]
[1729131599492,1.6548,2629.8,2629.6,0.38029]
[1729131599696,1.6548,2629.8,2629.4,1.1776]
[1729131599893,1.6548,2629.8,2629.6,0.38029]
[1729131600304,1.86252737,2629.8,2629.6,0.38029]
[1729131600497,0.77052737,2629.8,2629.4,1.1776]
[1729131600705,1.86252737,2629.8,2629.7,0.38029]
[1729131600995,5.66492737,2629.8,2629.7,0.38029]
[1729131601200,5.66492737,2629.8,2629.3,3.2078]
[1729131601398,0.38033,2629.5,2629.2,0.38035]
[1729131601603,2.67,2629.4,2629.1,1.1676]
[1729131601805,2.67,2629.2,2629.0,0.38037]
[1729131602111,2.67,2629.2,2628.7,4.3754]
[1729131602504,0.38037,2629.1,2628.9,0.38039]
[1729131602706,2.67,2629.2,2628.9,0.38039]
[1729131602901,3.05037,2629.2,2628.9,0.38039]
[1729131603220,0.38036,2629.2,2628.9,0.38039]
[1729131603414,3.762,2629.4,2628.7,4.3754]
[1729131603710,0.38036,2629.2,2629.0,0.38038]
[1729131604102,0.38035,2629.3,2629.1,0.38037]
[1729131604297,3.762,2629.4,2629.1,0.38037]
[1729131604499,1.47234,2629.3,2629.1,0.38037]
[1729131604909,1.092,2629.3,2629.1,0.38036]
[1729131605117,1.47235,2629.3,2629.1,0.38036]
[1729131605609,0.38035,2629.3,2628.9,0.00807826]
[1729131605806,1.47235,2629.3,2629.1,0.38037]
[1729131606207,1.47235,2629.3,2629.1,0.38036]
[1729131606208,1.092,2629.3,2629.1,0.38036]
[1729131607306,1.47235,2629.3,2629.1,0.38036]
[1729131607502,1.47235,2629.3,2629.1,0.38037]
[1729131607809,1.47236,2629.3,2628.9,0.00807826]
[1729131608006,1.47235,2629.3,2629.1,0.38037]
[1729131608207,1.47235,2629.3,2628.9,0.00807826]
[1729131608208,1.6488,2629.3,2628.9,0.00807826]
[1729131608405,2.02915,2629.3,2629.0,0.38037]
[1729131608606,0.38036,2629.2,2629.0,0.38037]
[1729131608803,0.38038,2629.1,2628.9,0.38846826]
[1729131609003,1.6488,2629.3,2628.9,0.00807826]
[1729131609211,0.38036,2629.2,2629.0,0.38038]
[1729131609609,2.02915,2629.3,2629.0,0.38038]
[1729131610003,1.6488,2629.3,2629.0,0.38038]
[1729131610210,0.38037,2629.1,2628.9,0.38846826]
[1729131610410,0.38036,2629.2,2628.9,0.38846826]
[1729131610717,0.38036,2629.2,2628.9,0.00807826]
[1729131611013,0.38036,2629.2,2629.0,0.38038]
[1729131611309,2.02915,2629.3,2629.0,0.38038]
[1729131611504,0.38036,2629.2,2628.9,0.38846826]
[1729131611710,0.38036,2629.2,2629.0,0.38038]
[1729131613014,0.38036,2629.2,2628.9,0.00807826]
[1729131613015,1.6488,2629.3,2628.9,0.00807826]
[1729131613316,1.6488,2629.3,2628.9,0.38847826]
[1729131613518,0.38036,2629.2,2629.0,0.38038]
[1729131614011,0.38037,2629.1,2628.9,0.38846826]
[1729131614407,0.38038,2629.1,2628.9,0.38846826]
[1729131614919,1.6488,2629.3,2628.9,0.00807826]
[1729131615122,0.38037,2629.2,2629.0,0.38039]
[1729131615904,1.6488,2629.3,2628.9,0.00807826]
[1729131616107,3.2078,2629.8,2629.3,0.38034]
[1729131616317,3.58808,2629.8,2629.6,0.38029]
[1729131616516,3.58808,2629.8,2629.6,0.3803]
[1729131616713,3.2078,2629.8,2629.7,0.38029]
[1729131617113,1.086,2630.0,2629.5,3.2078]
[1729131617316,0.58130104,2630.0,2629.7,0.38027]
[1729131617510,0.58130104,2630.0,2629.5,3.2078]
[1729131617511,1.66730104,2630.0,2629.8,0.38026]
[1729131618215,1.66730104,2630.0,2629.7,0.38028]
[1729131618610,1.66730104,2630.0,2629.5,3.2078]
[1729131618819,1.28705104,2630.0,2629.5,3.2078]
[1729131619115,0.38027,2629.9,2629.5,3.2078]
[1729131619316,0.38027,2629.9,2629.7,0.38028]
[1729131619520,0.38027,2629.9,2629.8,0.00807826]
[1729131619911,1.66730104,2630.0,2629.8,0.00807826]
[1729131620221,1.28705104,2630.0,2629.8,0.38833826]
[1729131620414,1.66729104,2630.0,2629.8,0.38833826]
[1729131620911,1.28705104,2630.0,2629.8,0.38833826]
[1729131621117,0.20105104,2630.0,2629.8,0.00807826]
[1729131621314,0.38024,2630.1,2629.9,0.38025]
[1729131621520,0.38024,2630.1,2629.9,0.97745]
[1729131622613,0.38024,2630.0,2629.9,0.5972]
[1729131622924,0.38026,2629.9,2629.8,0.00807826]
[1729131624121,2.67,2630.1,2629.8,0.00807826]
[1729131624321,0.3803,2629.6,2629.5,0.5972]
[1729131624625,6.9628,2629.6,2629.1,0.38036]
[1729131624820,1.6932,2629.5,2629.0,0.595]
[1729131625022,1.6932,2629.5,2629.0,0.97538]
[1729131625427,1.6932,2629.5,2629.0,0.595]
[1729131625617,1.6932,2629.5,2629.0,0.97538]
[1729131625618,0.38036,2629.2,2629.0,0.97538]
[1729131625812,0.38035,2629.3,2629.1,0.38037]
[1729131626017,1.6932,2629.5,2629.1,0.38037]
[1729131626225,0.38035,2629.3,2629.1,0.38037]
[1729131626425,0.38035,2629.3,2629.0,0.97538]
[1729131626620,0.38035,2629.3,2629.1,0.38037]
[1729131627118,2.27570357,2629.5,2629.3,0.38034]
[1729131627324,1.085,2629.5,2629.4,0.38032]
[1729131627621,0.38029,2629.7,2629.2,0.9509]
[1729131627622,1.085,2629.7,2629.2,0.9509]
[1729131627822,0.2063198,2630.2,2629.6,3.2078]
[1729131628024,1.085,2630.3,2630.1,0.38023]
[1729131628222,1.085,2630.3,2629.9,3.2078]
[1729131628419,1.085,2630.3,2630.0,0.38024]
[1729131628619,1.085,2630.3,2630.1,0.38022]
[1729131628829,1.085,2630.3,2629.9,3.2078]
[1729131629135,3.2078,2630.6,2630.0,0.5978]
[1729131629321,1.085,2630.5,2630.2,0.38021]
[1729131629633,0.38017,2630.5,2630.3,0.6045]
[1729131629925,4.4938369,2630.6,2630.3,0.6045]
[1729131630626,6.4716,2630.5,2629.9,3.7653]
[1729131630826,2.67,2630.1,2629.9,3.2078]
[1729131631128,0.38024,2630.1,2629.9,3.2078]
[1729131632231,0.38023,2630.1,2629.9,3.2078]
[1729131632529,0.38023,2630.1,2629.9,3.58805]
[1729131632720,0.38023,2630.1,2629.9,3.2078]
[1729131633429,1.53822,2630.2,2630.0,0.38024]
[1729131633633,1.53822,2630.2,2629.9,3.2078]
[1729131633822,1.53822,2630.2,2630.0,0.38024]
[1729131634132,1.53823,2630.2,2629.9,3.58805]
[1729131634333,1.158,2630.2,2629.9,3.58805]
[1729131634538,1.53822,2630.2,2629.9,3.58805]
[1729131635228,1.158,2630.2,2629.9,3.58805]
[1729131635434,0.38023,2630.1,2629.9,3.58805]
[1729131635626,1.53822,2630.2,2629.9,3.58805]
[1729131635930,1.158,2630.2,2629.9,3.2078]
[1729131636131,0.38024,2630.1,2629.9,3.2078]
[1729131636333,1.158,2630.2,2629.9,3.2078]
[1729131636534,1.158,2630.2,2629.9,3.58805]
[1729131636834,1.53822,2630.2,2629.9,3.58805]
[1729131637029,1.158,2630.2,2629.9,3.2078]
[1729131637232,0.38024,2630.1,2629.9,3.2078]
[1729131637728,1.53822,2630.2,2629.9,3.58805]
[1729131637929,0.38023,2630.1,2629.9,3.58806]
[1729131638126,1.53822,2630.2,2629.9,3.58806]
[1729131638731,0.38023,2630.1,2629.9,3.58806]
[1729131639036,1.158,2630.2,2629.9,3.2078]
[1729131639238,0.38023,2630.1,2629.9,3.58805]
[1729131639537,1.158,2630.2,2629.9,3.58805]
[1729131639731,3.2078,2630.0,2629.3,3.2078]
[1729131639935,0.38033,2629.4,2629.1,1.52137]
[1729131640137,0.38031,2629.5,2629.1,1.52136]
[1729131640324,1.54161,2629.5,2629.2,0.38035]
[1729131640830,1.54161,2629.5,2629.1,1.141]
[1729131641023,1.50963,2630.0,2629.5,0.3803]
[1729131641024,0.38028,2629.8,2629.5,0.3803]
[1729131641533,0.38028,2629.8,2629.6,0.9456]
[1729131642131,0.38027,2629.8,2629.6,0.9456]
[1729131642436,0.38027,2629.8,2629.6,0.5653]
[1729131642437,0.5872204,2629.8,2629.6,0.5653]
[1729131642932,0.2069404,2629.8,2629.6,0.5653]
[1729131643136,3.8313,2629.9,2629.4,0.38032]
[1729131643331,0.38029,2629.7,2629.5,0.38031]
[1729131643540,0.38029,2629.7,2629.4,0.95442]
[1729131644038,0.38029,2629.7,2629.5,0.38031]
[1729131645140,0.38029,2629.7,2629.4,0.95442]
[1729131645339,0.38029,2629.7,2629.5,0.38031]
[1729131645539,2.67,2629.6,2629.4,0.5741]
[1729131645840,0.38031,2629.5,2629.3,3.58814]
[1729131646036,2.67,2629.6,2629.3,3.58814]
[1729131646242,3.05031,2629.6,2629.3,3.58814]
[1729131646640,0.38032,2629.5,2629.1,0.5757]
[1729131646940,0.38032,2629.5,2629.2,0.38035]
[1729131647338,0.38033,2629.4,2629.2,0.38035]
[1729131647646,0.38036,2629.2,2629.0,0.5611]
[1729131647841,2.07065,2629.3,2629.1,0.38037]
[1729131648838,2.07065,2629.3,2629.0,0.5611]
[1729131648839,2.07065,2629.3,2629.0,0.94148]
[1729131649041,1.6903,2629.3,2629.0,0.5611]
[1729131649339,2.07065,2629.3,2629.1,0.38036]
[1729131649541,1.1361,2629.3,2629.1,0.38036]
[1729131650040,3.2078,2629.4,2629.0,0.5611]
[1729131650242,1.085,2629.5,2629.3,0.38034]
[1729131650438,1.29106764,2629.5,2629.3,0.38034]
[1729131650646,1.29106764,2629.5,2629.4,0.5836]
[1729131650944,1.67137764,2629.5,2629.4,0.5836]
[1729131651146,1.29106764,2629.5,2629.4,0.5836]
[1729131651640,1.67137764,2629.5,2629.4,0.5836]
[1729131651840,1.29106764,2629.5,2629.1,0.5557]
[1729131652143,0.38033,2629.4,2629.2,0.38035]
[1729131652340,0.38033,2629.4,2629.1,1.52657]
[1729131652543,0.38033,2629.4,2629.1,0.97087]
[1729131652843,1.29106764,2629.5,2629.2,0.38035]
[1729131652844,1.67138764,2629.5,2629.2,0.38035]
[1729131653241,1.29106764,2629.5,2629.1,0.5905]
[1729131653439,1.67138764,2629.5,2629.2,0.38034]
[1729131654037,1.29106764,2629.5,2629.3,0.38034]
[1729131654443,1.29106764,2629.5,2629.3,0.38033]
[1729131654639,1.29106764,2629.5,2629.1,0.5905]
[1729131654640,1.67138764,2629.5,2629.2,0.38035]
[1729131655637,1.29106764,2629.5,2629.1,0.5905]
[1729131656145,0.38033,2629.4,2629.2,0.38035]
[1729131658647,0.38035,2629.3,2629.1,0.5905]
[1729131659152,0.38034,2629.4,2629.1,0.97087]
[1729131659647,0.38034,2629.4,2629.2,0.38035]
[1729131660344,1.29106764,2629.5,2629.1,0.5905]
[1729131660743,0.38034,2629.4,2629.2,0.38036]
[1729131660941,1.29106764,2629.5,2629.1,0.5905]
[1729131661142,0.38034,2629.3,2629.1,0.97087]
[1729131661345,1.29106764,2629.5,2629.1,0.5905]
[1729131661645,0.38033,2629.4,2629.2,0.38035]
[1729131662045,1.29106764,2629.5,2629.1,0.5905]
[1729131662251,0.3804,2628.9,2628.8,0.01052308]
[1729131662446,0.38044,2628.7,2628.4,1.55106]
[1729131662840,0.5792,2628.8,2628.4,1.55106]
[1729131663143,0.38045,2628.6,2628.4,1.1706]
[1729131663346,0.38044,2628.7,2628.4,1.55107]
[1729131663553,0.5792,2628.8,2628.4,1.1706]
[1729131663748,0.38044,2628.6,2628.4,1.1706]
[1729131663939,0.38044,2628.7,2628.4,1.1706]
[1729131664146,0.38044,2628.7,2628.4,1.55106]
[1729131665157,0.38044,2628.7,2628.4,1.55107]
[1729131665847,0.20388006,2628.7,2628.4,1.1706]
[1729131666153,1.085,2628.8,2628.7,0.38043]
[1729131666451,1.085,2628.8,2628.6,0.38043]
[1729131666646,1.085,2628.8,2628.5,0.5465]
[1729131666847,1.46542,2628.8,2628.5,0.5465]
[1729131667051,1.46542,2628.8,2628.6,0.38044]
[1729131667452,1.670898,2628.8,2628.6,0.38044]
[1729131668146,1.670898,2628.8,2628.5,0.5465]
[1729131668448,1.670898,2628.8,2628.6,0.38044]
[1729131668849,1.670908,2628.8,2628.5,0.92695]
[1729131669054,1.290478,2628.8,2628.5,0.38045]
[1729131669350,1.290478,2628.8,2628.4,1.1706]
[1729131669351,1.670898,2628.8,2628.6,0.38044]
[1729131669955,1.290478,2628.8,2628.4,1.1706]
[1729131670149,0.205478,2628.8,2628.6,2.67]
[1729131670351,4.2928,2629.2,2628.6,9.62111]
[1729131670543,4.2928,2629.2,2628.6,3.62111]
[1729131670854,4.2928,2629.2,2629.1,0.38037]
[1729131671157,4.49805343,2629.2,2629.1,0.38037]
[1729131671955,3.41305343,2629.2,2629.1,0.38037]
[1729131672555,3.79341343,2629.2,2629.0,0.38038]
[1729131673053,3.79341343,2629.2,2629.0,0.38039]
[1729131673451,0.78765343,2629.2,2629.0,0.38039]
[1729131673947,0.78765343,2629.2,2628.9,1.1176]
[1729131674154,0.78765343,2629.2,2629.1,0.38037]
[1729131674155,0.20525343,2629.2,2629.1,0.38037]
[1729131674352,1.084,2629.4,2628.9,1.1176]
[1729131674548,1.084,2629.4,2629.2,0.38035]
[1729131674851,4.17052,2629.5,2629.2,0.38035]
[1729131675045,4.17052,2629.5,2628.9,2.0686]
[1729131675046,1.084,2629.4,2628.9,2.0686]
[1729131675246,0.38027,2629.9,2629.6,0.38029]
[1729131675442,3.2078,2630.0,2629.5,0.95079]
[1729131675644,3.41584252,2630.0,2629.6,1.1303]
[1729131675852,0.38028,2629.8,2629.6,1.1303]
[1729131676054,6.08584252,2630.0,2629.6,1.1303]
[1729131676352,5.8778,2630.0,2629.8,0.38027]
[1729131676651,6.25804,2630.0,2629.8,0.38027]
[1729131676955,5.8778,2630.0,2629.8,0.38027]
[1729131677156,6.25804,2630.0,2629.8,0.38027]
[1729131677350,3.2078,2630.0,2629.8,0.38026]
[1729131677846,3.2078,2630.0,2629.6,1.1303]
[1729131678046,0.38026,2629.9,2629.6,1.51059]
[1729131678552,3.58805,2630.0,2629.7,0.38027]
[1729131679254,3.58804,2630.0,2629.7,0.38027]
[1729131679448,3.2078,2630.0,2629.8,0.38027]
[1729131679644,3.58805,2630.0,2629.7,0.38028]
[1729131680154,3.2078,2630.0,2629.6,1.1303]
[1729131680351,3.2078,2630.0,2629.8,0.38027]
[1729131680553,3.2078,2630.0,2629.6,1.1303]
[1729131680758,1.084,2630.2,2629.7,3.2078]
[1729131681058,8.48609,2630.4,2630.1,0.38023]
[1729131681360,3.2078,2630.4,2629.8,0.95069]
[1729131681654,3.2078,2630.4,2629.9,0.5513]
[1729131681858,3.2078,2630.4,2630.2,0.38021]
[1729131683155,3.4163714,2630.4,2630.2,0.38021]
[1729131683856,3.2078,2630.4,2630.3,0.3802]
[1729131684046,1.7013,2630.7,2630.0,6.82841]
[1729131684249,0.20234661,2630.8,2630.7,0.38014]
[1729131684554,1.084,2631.0,2630.3,3.2078]
[1729131684861,0.38014,2630.8,2630.5,0.38017]
[1729131685349,0.38014,2630.8,2630.3,3.2078]
[1729131685350,0.38012,2630.9,2630.6,0.38014]
[1729131685554,0.38012,2630.9,2630.3,3.2078]
[1729131685555,13.87,2631.1,2630.3,3.2078]
[1729131685858,1.084,2631.0,2630.8,0.38012]
[1729131686454,1.084,2631.0,2630.4,0.5895]
[1729131686650,0.38015,2630.7,2630.4,0.38017]
[1729131686958,1.46412,2630.9,2630.6,0.38015]
[1729131687149,1.084,2630.9,2630.7,0.92554]
[1729131687349,3.40857789,2631.1,2631.0,0.3801]
[1729131687556,1.46406,2631.3,2631.0,0.38009]
[1729131687950,1.084,2631.3,2631.0,0.38009]
[1729131688160,4.01798167,2631.5,2630.8,1.1421]
[1729131688457,0.5526,2631.5,2631.3,0.38005]
[1729131688655,0.38002,2631.6,2631.3,0.38005]
[1729131688656,1.46401,2631.6,2631.3,0.38005]
[1729131689059,0.20843398,2631.6,2630.9,6.82807]
[1729131689259,0.38002,2631.6,2631.3,0.38004]
[1729131689648,0.38002,2631.6,2630.9,6.82807]
[1729131689649,3.2078,2631.7,2631.4,0.94994]
[1729131689850,3.79154616,2631.7,2631.4,0.94993]
[1729131690064,3.2078,2631.7,2631.5,0.93082]
[1729131690360,3.2078,2631.7,2631.5,0.5508]
[1729131690659,0.20517911,2632.0,2631.6,3.8]
[1729131690859,0.37996,2632.0,2631.7,0.37999]
[1729131691063,3.58775,2632.1,2631.8,0.37998]
[1729131691361,3.58775,2632.1,2631.5,3.7586]
[1729131691660,3.58775,2632.1,2631.7,0.37999]
[1729131692054,3.58775,2632.1,2631.5,3.7586]
[1729131692055,3.58775,2632.1,2631.8,0.37998]
[1729131692456,3.58775,2632.1,2631.7,0.37999]
[1729131693459,5.8778,2632.1,2631.5,3.7586]
[1729131693653,2.67,2631.7,2631.2,3.2078]
[1729131693860,3.05005,2631.3,2631.2,3.2078]
[1729131694055,0.38005,2631.3,2631.2,3.2078]
[1729131694260,0.38005,2631.4,2631.2,3.2078]
[1729131694559,1.714,2631.6,2631.2,3.58787]
[1729131694560,2.09402,2631.6,2631.2,3.58787]
[1729131694759,0.38003,2631.5,2631.2,3.2078]
[1729131695067,1.714,2631.6,2631.2,3.2078]
[1729131695358,3.05004,2631.5,2631.2,3.2078]
[1729131695562,0.38004,2631.5,2631.2,3.58787]
[1729131695956,0.38004,2631.5,2631.2,3.2078]
[1729131696662,0.38004,2631.5,2631.2,3.58786]
[1729131696957,2.09402,2631.6,2631.2,3.58786]
[1729131697168,0.38003,2631.5,2631.2,3.58786]
[1729131697860,1.714,2631.6,2631.2,3.2078]
[1729131698060,0.38003,2631.5,2631.2,3.58786]
[1729131698563,1.714,2631.6,2631.2,3.2078]
[1729131698765,0.5875,2631.6,2631.3,0.38005]
[1729131699059,3.2078,2631.8,2631.2,5.8778]
[1729131699256,3.2078,2631.8,2631.6,0.38001]
[1729131699456,3.2078,2631.8,2631.7,0.4179]
[1729131699959,3.41446963,2631.8,2631.7,0.4179]
[1729131700155,3.2078,2631.8,2631.7,0.4179]
[1729131700673,3.2078,2631.8,2631.7,0.7979]
[1729131700859,3.2078,2631.8,2631.7,0.4179]
[1729131703766,0.38002,2631.6,2631.3,0.38005]
[1729131703960,0.76891,2631.7,2631.4,0.38004]
[1729131704563,0.38002,2631.6,2631.3,0.78455]
[1729131704764,0.3889,2631.7,2631.3,0.4045]
[1729131704966,0.38001,2631.6,2631.4,0.38003]
[1729131705163,0.76891,2631.7,2631.4,0.38003]
[1729131705364,0.76891,2631.7,2631.3,0.4045]
[1729131705673,0.76891,2631.7,2631.5,0.38002]
[1729131705674,0.38001,2631.7,2631.5,0.38002]
[1729131706166,3.41035937,2631.9,2631.5,0.38002]
[1729131706366,0.38001,2631.6,2631.5,0.38002]
[1729131706572,3.41035937,2631.9,2631.5,0.38002]
[1729131706871,3.41035937,2631.9,2631.3,0.4045]
[1729131707069,0.38002,2631.6,2631.4,0.38003]
[1729131707264,0.38002,2631.6,2631.3,0.4045]
[1729131707576,0.38002,2631.6,2631.4,0.38004]
[1729131707774,0.38002,2631.6,2631.5,0.38003]
[1729131708972,0.37999,2631.8,2631.6,0.38]
[1729131709279,0.37999,2631.8,2631.7,0.38]
[1729131709574,3.58776,2632.0,2631.8,0.37997]
[1729131709773,3.78939668,2632.0,2631.9,0.78917]
[1729131709974,3.40943668,2632.0,2631.9,0.78917]
[1729131710274,3.2078,2632.0,2631.9,0.78917]
[1729131711966,0.37998,2631.9,2631.6,0.38]
[1729131712762,0.37998,2631.8,2631.6,0.38]
[1729131713162,0.37998,2631.8,2631.6,4.18]
[1729131713560,0.37998,2631.9,2631.7,0.37999]
[1729131713775,0.37995,2632.0,2631.6,0.38]
[1729131713976,3.2078,2632.0,2631.5,1.21571]
[1729131714185,0.37999,2631.8,2631.6,0.38001]
[1729131714770,3.2078,2632.0,2631.6,0.38001]
[1729131714973,0.37999,2631.8,2631.6,0.38001]
[1729131715673,5.79327,2632.1,2631.6,0.38001]
[1729131716168,0.37999,2631.8,2631.6,0.38001]
[1729131716569,5.79327,2632.1,2631.6,0.38001]
[1729131716972,0.37999,2631.8,2631.6,0.38001]
[1729131717677,0.38,2631.8,2631.6,0.38001]
[1729131718868,0.38,2631.7,2631.6,0.38001]
[1729131719076,0.37999,2631.8,2631.6,0.38001]
[1729131719870,1.082,2632.0,2631.6,0.38001]
[1729131720173,0.38,2631.7,2631.6,0.38001]
[1729131720372,0.37999,2631.8,2631.5,0.8357]
[1729131720576,0.37999,2631.8,2631.6,0.38]
[1729131721070,1.082,2632.0,2631.5,0.8357]
[1729131721371,0.37999,2631.8,2631.6,0.38]
[1729131721671,1.082,2632.0,2631.6,0.38]
[1729131721870,0.38001,2631.7,2631.5,1.21572]
[1729131722273,0.38001,2631.6,2631.5,1.21572]
[1729131722477,0.38001,2631.6,2631.2,0.95016]
[1729131722478,0.38007,2631.3,2631.2,0.38006]
[1729131722689,0.95004,2631.6,2631.1,4.0357]
[1729131722690,0.38007,2631.2,2631.1,4.0357]
[1729131722877,0.38007,2631.2,2631.1,4.41578]
[1729131723180,0.38006,2631.3,2631.2,0.38006]
[1729131723573,1.174,2631.5,2631.1,4.0357]
[1729131723766,0.38006,2631.3,2631.2,0.38006]
[1729131723971,0.38006,2631.3,2631.2,0.38007]
[1729131724170,0.38005,2631.4,2631.2,0.38006]
[1729131724677,1.38307784,2631.5,2631.2,0.38006]
[1729131724875,0.38005,2631.4,2631.2,0.38006]
[1729131725278,1.38307784,2631.5,2631.1,4.0357]
[1729131725474,1.38307784,2631.5,2631.1,4.41578]
[1729131725679,0.38006,2631.3,2631.1,4.0357]
[1729131725881,0.38006,2631.3,2631.2,0.38007]
[1729131726380,1.38307784,2631.5,2631.2,0.38007]
[1729131726578,0.38005,2631.3,2631.2,0.38007]
[1729131726778,0.38005,2631.3,2631.1,4.0357]
[1729131726779,0.38007,2631.2,2631.1,4.41578]
[1729131726977,0.38007,2631.2,2630.7,2.41485123]
[1729131726978,1.082,2631.4,2630.7,0.97633415]
[1729131727176,0.38013,2630.8,2630.7,0.4051]
[1729131727482,4.15801,2631.2,2630.4,4.43391415]
[1729131727681,4.15801,2631.2,2630.4,0.8125]
[1729131727682,0.3875,2630.7,2630.4,0.8125]
[1729131727880,0.3875,2630.7,2630.5,0.38016]
[1729131728081,0.3875,2630.7,2630.4,0.8125]
[1729131728486,0.3875,2630.7,2630.4,3.4825]
[1729131728782,0.76765,2630.7,2630.5,0.38016]
[1729131729086,0.3875,2630.7,2630.6,0.38016]